[Event "LV Capablanca Memorial Elite 2022"]
[Site "La Habana"]
[Date "2022.04.26"]
[Round "7.1"]
[White "Almeida Quintana, Omar"]
[Black "Yilmaz, Mustafa"]
[Result "1/2-1/2"]
[ECO "D38"]
[WhiteElo "2535"]
[BlackElo "2627"]
[Annotator "TA"]
[PlyCount "87"]
[EventDate "2022.04.20"]
[EventType "tourn"]
[EventCountry "CUB"]
[SourceTitle "playchess.com"]
[Source "ChessBase"]
[SourceQuality "1"]
[TimeControl "40/5400+30:1800+30"]

{[%evp 12,87,21,20,14,12,12,0,4,5,67,60,78,55,72,61,58,57,89,63,53,76,67,61,56,56,67,56,79,76,99,64,66,67,72,65,60,47,55,62,51,46,51,47,46,47,48,48,62,57,46,55,69,47,39,40,28,0,18,8,8,0,8,8,10,-8,-8,-8,-8,-44,8,0,0,0,8,0,0,-62]} 1. d4 {[%emt 0:00:04]} Nf6 {[%emt 0:00:04]} 2. c4 {[%emt 0:00:03]} e6 {[%emt 0:00:04]} 3. Nf3 {[%emt 0:00:21]} d5 {[%emt 0:00:07]} 4. Nc3 {[%emt 0:00:14]} Bb4 {[%emt 0:00:06]} 5. cxd5 {[%emt 0:04:22]} exd5 {[%emt 0:00:07]} 6. Bg5 {[%emt 0:00:08]} h6 {[%emt 0:00:35]} 7. Bh4 {[%emt 0:00:20]} O-O {[%emt 0:01:11] 7...Bf5 is a critical line. D38: Queen's Gambit Declined: Ragozin Defence (4 Nf3 Bb4).} 8. e3 {[%emt 0:05:25]} Bf5 {[%emt 0:00:49]} 9. Bd3 {[%emt 0:03:08]} Bxd3 {[%emt 0:02:42]} 10. Qxd3 {[%emt 0:00:03] [#]} c5 $146 {[%emt 0:05:59]} (10... c6 $11) ({Predecessor:} 10... Nbd7 11. Qb5 Bxc3+ 12. bxc3 Nb6 13. Nd2 Qd7 14. Qxd7 Nfxd7 15. a4 a5 16. Ke2 Rfe8 {1-0 (47) Carlsen,M (2862)-Aronian,L (2781) chess24.com INT 2021}) 11. dxc5 $14 {[%emt 0:02:37]} g5 {[%emt 0:10:39]} 12. Bg3 {[%emt 0:01:49]} Nbd7 {[%emt 0:02:57]} 13. Bd6 {[%emt 0:03:52] &Bianco is more active.} Nxc5 {[%emt 0:07:14]} 14. Bxc5 {[%emt 0:00:30]} Bxc5 {[%emt 0:00:07]} 15. O-O {[%emt 0:11:13]} Qd7 {[%emt 0:02:28]} 16. Rfd1 {[%emt 0:00:48][%cal Rc3d5]} Rfd8 {[%emt 0:08:11]} 17. Nd4 {[%emt 0:02:05]} Rac8 {[%emt 0:03:18]} 18. h3 {[%emt 0:00:29]} a6 {[%emt 0:03:52]} 19. Rac1 {[%emt 0:05:14]} (19. Nf5 {is interesting.} h5 20. e4 Bxf2+ 21. Kxf2 Nxe4+ 22. Qxe4 dxe4 23. Rxd7 Rxd7 24. Nxe4 Rc2+ 25. Ke3) 19... Bf8 {[%emt 0:02:09]} 20. Rc2 {[%emt 0:03:13]} Re8 {[%emt 0:04:56]} 21. Qf5 {[%emt 0:05:10]} Qxf5 {[%emt 0:04:00]} 22. Nxf5 {[%emt 0:00:14] Pair of Knights!} h5 {[%emt 0:09:38] [#]} 23. Nxd5 $1 {[%emt 0:10:37]} Nxd5 {[%emt 0:01:04]} 24. Rxc8 {[%emt 0:00:07]} Rxc8 {[%emt 0:00:04]} 25. Rxd5 $16 {[%emt 0:00:05][%mdl 4096] Endgame KRB-KRN} Rc1+ {[%emt 0:00:18]} 26. Kh2 {[%emt 0:00:06]} Rc2 {[%emt 0:00:32][%csl LRb2,LRf2]} 27. Nd4 {[%emt 0:11:19][%csl LRc2,LRg5]} Rxf2 {[%emt 0:02:45]} 28. Rxg5+ {[%emt 0:00:18]} Kh7 $1 {[%emt 0:00:22]} 29. Rxh5+ {[%emt 0:01:30]} Kg6 {[%emt 0:00:02]} 30. Rd5 {[%emt 0:00:36]} Bh6 {[%emt 0:04:17]} 31. Nf3 {[%emt 0:07:03] Strongly threatening Ne5+.} Rxb2 {[%emt 0:06:10]} 32. Ne5+ {[%emt 0:01:50]} Kh7 $1 {[%emt 0:02:40]} 33. Ng4 {[%emt 0:09:54] [#] aiming for Rh5.} Bg7 {[%emt 0:10:05]} 34. Rd7 {[%emt 0:02:26]} b5 {[%emt 0:01:15]} 35. Rxf7 {[%emt 0:02:04]} Rxa2 {[%emt 0:00:02]} 36. h4 {[%emt 0:00:33]} Kg6 {[%emt 0:01:53]} 37. Rb7 {[%emt 0:00:12][%cal Oh4h5] Threatens to win with h5+!} Bc3 {[%emt 0:00:09]} 38. e4 {[%emt 0:00:49]} b4 {[%emt 0:02:19]} 39. Rb6+ {[%emt 0:01:13]} Kf7 {[%emt 0:00:04]} 40. h5 {[%emt 0:00:00]} a5 {[%emt 0:00:00]} (40... Ra5 $15 41. Rb7+ Ke6 42. Rb6+ Ke7 43. Rb7+ Ke6 44. Rb6+ Ke7 45. Rb7+ Kd6 46. e5+ Kc6) 41. Rb7+ {[%emt 0:03:39] The position is equal.} Ke6 {[%emt 0:01:59]} 42. Rb6+ {[%emt 0:01:43]} Kf7 {[%emt 0:11:30]} 43. Rb7+ {[%emt 0:00:10]} Ke6 {[%emt 0:01:45]} 44. e5 {Weighted Error Value: White=0.08 (flawless) /Black=0.08 (flawless)} ({Better is} 44. Rb6+ $11 Kf7) 1/2-1/2

[Event "LV Capablanca Memorial Elite 2022"]
[Site "La Habana"]
[Date "2022.04.26"]
[Round "7.2"]
[White "Niemann, Hans Moke"]
[Black "Albornoz Cabrera, Carlos Daniel"]
[Result "1-0"]
[ECO "B95"]
[WhiteElo "2642"]
[BlackElo "2567"]
[Annotator "TA"]
[PlyCount "109"]
[EventDate "2022.04.20"]
[EventType "tourn"]
[EventCountry "CUB"]
[SourceTitle "playchess.com"]
[Source "ChessBase"]
[SourceQuality "1"]
[TimeControl "40/5400+30:1800+30"]

{[%evp 16,109,0,-7,14,0,0,-80,-69,-67,-62,-67,-62,-65,-74,-60,-60,-59,-58,-60,-58,-67,-58,-82,-86,-79,-72,-95,-60,-41,-56,-58,-44,-108,-88,-120,-45,-46,-45,-47,-4,-10,-4,-24,-22,-41,-48,-37,0,-8,0,0,8,7,8,8,153,158,187,171,163,179,177,188,191,187,342,326,314,207,438,427,545,528,605,605,631,655,656,655,537,581,732,731,721,702,711,711,700,692,619,603,636,499,585,461]} 1. e4 {[%emt 0:00:27]} c5 {[%emt 0:00:11]} 2. Nf3 {[%emt 0:00:39]} d6 {[%emt 0:00:10]} 3. d4 {[%emt 0:01:05]} cxd4 {[%emt 0:00:07]} 4. Nxd4 {[%emt 0:00:28]} Nf6 {[%emt 0:00:05]} 5. Nc3 {[%emt 0:00:32]} a6 {[%emt 0:00:07]} 6. Bg5 {[%emt 0:02:45]} e6 {[%emt 0:00:13]} 7. Qf3 {[%emt 0:02:33]} Nbd7 {[%emt 0:01:25]} 8. O-O-O {[%emt 0:01:33]} Qc7 {[%emt 0:00:28]} 9. Qg3 {[%emt 0:03:30]} h6 {[%emt 0:08:24] B95: Sicilian Najdorf: 6 Bg5 e6, unusual White 7th moves.} 10. Be3 {[%emt 0:08:43]} b5 {[%emt 0:04:38] Strongly threatening ...b4.} 11. Bxb5 {[%emt 0:11:06]} axb5 $17 {[%emt 0:00:04] Black is better.} 12. Ndxb5 {[%emt 0:00:08]} Qb8 {[%emt 0:09:29][%cal Of6e4] White must now prevent ...Nxe4!} 13. Nxd6+ {[%emt 0:03:19]} Bxd6 {[%emt 0:00:08]} 14. Qxd6 {[%emt 0:01:33]} Qxd6 {[%emt 0:04:29]} 15. Rxd6 {[%emt 0:00:11]} Ng4 $1 {[%emt 0:03:48]} 16. Re1 {[%emt 0:00:47]} Nxe3 {[%emt 0:08:25]} ({But not} 16... Nxh2 17. f3 $16) 17. Rxe3 {[%emt 0:00:22]} Ne5 {[%emt 0:01:29] [#] ...Nc4 is the strong threat.} 18. b3 $146 {[%emt 0:01:32] Prevents Nc4.} ({Predecessor:} 18. Re1 g5 19. Rd2 Ke7 20. f3 Ra7 21. b3 Bd7 22. a4 Rc8 23. Ne2 Rac7 {0-1 (23) Guzman,J (1600)-Bolivar,J (2086) Manizales 2009}) 18... Ke7 {[%emt 0:01:18]} 19. Rb6 {[%emt 0:03:48][%cal Oc3d5]} g5 $36 {[%emt 0:03:04][%mdl 2048] Black is in control.} (19... Ng4 {feels hotter.} 20. Rg3 Nxf2 21. Rxg7 Ra6) 20. f3 {[%emt 0:00:40]} Ba6 {[%emt 0:03:33]} 21. a4 {[%emt 0:00:51]} Rhb8 {[%emt 0:04:08]} 22. Rxb8 {[%emt 0:00:16]} Rxb8 {[%emt 0:00:02]} 23. Nb1 {[%emt 0:02:12]} Kd6 {[%emt 0:09:05]} 24. Nd2 {[%emt 0:00:44] [#]} (24. Re1 $15) 24... Kc5 $1 {[%emt 0:02:26]} 25. Kb2 {[%emt 0:03:20]} Rd8 {[%emt 0:02:15]} (25... Kd4 $17 26. Re1 h5) 26. Kc3 $15 {[%emt 0:02:02]} Kb6 {[%emt 0:01:38]} 27. Re1 {[%emt 0:02:11]} h5 {[%emt 0:01:51]} 28. b4 {[%emt 0:04:23]} h4 {[%emt 0:05:18][%cal Oh4h3]} 29. b5 {[%emt 0:02:11]} Bb7 {[%emt 0:00:28][%cal Oh4h3]} 30. h3 {[%emt 0:00:12]} Rc8+ {[%emt 0:03:29]} 31. Kb3 {[%emt 0:00:24]} Rd8 {[%emt 0:03:16]} 32. Rd1 {[%emt 0:02:40]} Kc7 {[%emt 0:05:47][%cal Og5g4]} (32... Kc5 $5 33. Kc3 Rc8 $11) 33. Kc3 {[%emt 0:00:13]} Ng6 {[%emt 0:01:28]} 34. Re1 {[%emt 0:07:19]} Nf4 {[%emt 0:01:17]} 35. Nc4 {[%emt 0:00:02] aiming for a5.} f6 {[%emt 0:04:13] [#] White leaves nothing to chance now.} (35... f5 $1 $11) 36. a5 $1 $16 {[%emt 0:00:52][%cal Ba4a5,Ba5a6,Ba6a7][%mdl 32]} Nxg2 {[%emt 0:00:42]} 37. Ra1 {[%emt 0:00:01]} g4 {[%emt 0:03:17]} 38. hxg4 {[%emt 0:04:45]} h3 {[%emt 0:01:13]} 39. a6 {[%emt 0:00:06][%mdl 1024] White has strong compensation.} Ba8 {[%emt 0:02:42]} 40. b6+ {[%emt 0:00:00]} Kb8 $2 {[%emt 0:00:00]} (40... Kc6) 41. Na5 $18 {[%emt 0:37:02]} Nf4 {[%emt 0:12:32]} 42. Rb1 {[%emt 0:06:08]} Ne2+ $2 {[%emt 0:07:41]} (42... Nd5+ 43. exd5 Bxd5) 43. Kc4 {[%emt 0:05:22] White is clearly winning.} Rd7 {[%emt 0:09:22]} 44. a7+ {[%emt 0:05:50]} Kc8 {[%emt 0:00:02]} 45. b7+ {[%emt 0:00:06]} Rxb7 {[%emt 0:00:05]} 46. Nxb7 {[%emt 0:00:07]} Bxb7 {[%emt 0:00:03]} 47. Rh1 {[%emt 0:00:12]} Nf4 {[%emt 0:00:17]} 48. Kd4 {[%emt 0:00:19]} e5+ {[%emt 0:00:56]} 49. Ke3 {[%emt 0:00:04]} Kc7 {[%emt 0:00:41]} 50. Ra1 {[%emt 0:01:09]} Ba8 {[%emt 0:00:25]} 51. Rb1 {[%emt 0:00:06]} Bb7 {[%emt 0:00:20]} 52. Kf2 {[%emt 0:00:10]} Ne6 {[%emt 0:01:17]} 53. Kg3 {[%emt 0:00:18]} Nd4 {[%emt 0:00:52]} 54. Ra1 {[%emt 0:01:25]} Ba8 {[%emt 0:00:05]} 55. Rh1 {[%emt 0:00:08] Weighted Error Value: White=0.13 (very precise) /Black=0.33} 1-0

[Event "LV Capablanca Memorial Elite 2022"]
[Site "La Habana"]
[Date "2022.04.26"]
[Round "7.3"]
[White "Quesada Perez, Luis Ernesto"]
[Black "Quesada Perez, Yasser"]
[Result "1-0"]
[ECO "A52"]
[WhiteElo "2517"]
[BlackElo "2568"]
[Annotator "TA"]
[PlyCount "63"]
[EventDate "2022.04.20"]
[EventType "tourn"]
[EventCountry "CUB"]
[SourceTitle "playchess.com"]
[Source "ChessBase"]
[SourceQuality "1"]
[TimeControl "40/5400+30:1800+30"]

{[%evp 19,63,46,58,38,37,35,45,37,50,41,68,34,121,118,155,155,154,163,157,143,160,158,160,155,272,158,172,171,162,164,142,167,195,197,441,427,415,331,939,930,914,885,978,978,876,520]} 1. d4 {[%emt 0:11:28][%cal Bd2d4,Bd4e5][%mdl 32]} Nf6 {[%emt 0:00:11]} 2. c4 {[%emt 0:00:06]} e5 {[%emt 0:00:06]} 3. dxe5 {[%emt 0:00:04]} Ng4 {[%emt 0:00:04]} 4. Bf4 {[%emt 0:01:48]} g5 {[%emt 0:00:05]} 5. Bg3 {[%emt 0:00:03]} Bg7 {[%emt 0:00:05]} 6. Nf3 {[%emt 0:00:11]} Nc6 {[%emt 0:00:04]} 7. Nc3 {[%emt 0:03:26]} Ngxe5 {[%emt 0:00:05]} 8. Nxe5 {[%emt 0:00:08]} Nxe5 {[%emt 0:00:03]} 9. e3 {[%emt 0:00:25]} d6 {[%emt 0:00:08]} 10. Be2 {[%emt 0:03:26] 10.h4 injects fresh life into this line.} Be6 {[%emt 0:00:16][%cal Oh7h5]} 11. Rc1 {[%emt 0:00:20] A52: Budapest Gambit.} h5 {[%emt 0:08:11]} (11... Nxc4 12. Bxc4 Bxc4 13. Qa4+ b5 14. Nxb5 Bxb5 15. Qxb5+ Qd7 16. Qxg5 $16) 12. Bxh5 {[%emt 0:09:01] [#]} Qd7 $146 {[%emt 0:19:43]} ({Predecessor:} 12... Nxc4 13. Be2 c6 14. b3 Qa5 15. Qc2 Ne5 16. O-O f5 17. b4 Qxb4 18. Rb1 Qc5 19. Rxb7 {½-½ (52) Bogdanovich,S (2510)-Sitnikov,A (2506) Donetsk 2011}) 13. Be2 {[%emt 0:00:26][%cal Oc4c5] White is slightly better.} f5 {[%emt 0:04:37]} (13... Bxc4 14. Bxc4 Nxc4 15. Nd5 Nxb2 16. Nxc7+ Qxc7 17. Rxc7 $16) 14. Nb5 {[%emt 0:07:45] aiming for c5.} O-O {[%emt 0:03:21]} 15. Qd2 {[%emt 0:02:39]} (15. Bxe5 $5 Bxe5 16. Nd4 $16) 15... Qf7 {[%emt 0:07:28] [#]} (15... Nxc4 $14 16. Rxc4 (16. Bxc4 Bxc4 17. Rxc4 Qxb5 $14) 16... Qxb5 17. Rxc7 Qxb2) 16. b3 $1 $16 {[%emt 0:01:38][%cal Bb2b3,Bb3b4][%mdl 32]} (16. Bxe5 $6 dxe5 17. Qb4 Rfd8 $11) 16... Rae8 {[%emt 0:28:50] [#]} 17. f4 $1 {[%emt 0:01:34]} (17. Nxa7 f4 18. O-O (18. exf4 $2 gxf4 19. O-O fxg3 $19) 18... c6 19. exf4 gxf4 $19) 17... gxf4 {[%emt 0:03:22]} 18. Bxf4 {[%emt 0:03:14]} ({And not} 18. exf4 Nxc4 19. Qd3 (19. bxc4 Bxc4 20. Rxc4 Rxe2+ 21. Kxe2 Qxc4+ 22. Kf2 Qc5+ 23. Kf3 Qc6+ 24. Kf2 Qxb5 $17) 19... Nb2 $11) 18... a6 {[%emt 0:00:34]} 19. Nd4 {[%emt 0:02:06]} Bc8 {[%emt 0:00:05]} 20. O-O {[%emt 0:00:09]} b6 {[%emt 0:00:08]} 21. b4 {[%emt 0:06:19]} Ng6 {[%emt 0:05:20]} (21... Bb7 $16 22. c5 Qg6) 22. Bf3 {[%emt 0:20:05]} ({Better is} 22. Bh5 $18) 22... Nxf4 {[%emt 0:02:32]} 23. exf4 {[%emt 0:00:06]} Qf6 {[%emt 0:03:31]} 24. Bd5+ {[%emt 0:00:11]} Kh8 {[%emt 0:00:03]} 25. Nc6 {[%emt 0:00:13] 0x0.001e7f237ef4dp-1022s more active pieces.} Bd7 {[%emt 0:01:38]} 26. Rf3 {[%emt 0:04:48]} Re4 $2 {[%emt 0:00:05]} (26... Bh6 {was necessary.} 27. Rh3 Bxc6) 27. Rh3+ $18 {[%emt 0:00:47]} Bh6 {[%emt 0:00:00]} 28. g4 {[%emt 0:00:13]} Rg8 {[%emt 0:10:49]} (28... fxg4 29. Rxh6+ Qxh6) 29. g5 {[%emt 0:01:23] White is clearly winning.} Rxf4 {[%emt 0:00:22]} 30. Qxf4 {[%emt 0:00:19]} Rxg5+ {[%emt 0:00:04]} 31. Kh1 {[%emt 0:00:13]} Kg7 {[%emt 0:00:23]} 32. Qd4 {[%emt 0:05:58] White took control after the opening.  Weighted Error Value: White=0.12 (very precise) /Black=0.36} 1-0

[Event "LV Capablanca Memorial Elite 2022"]
[Site "La Habana"]
[Date "2022.04.26"]
[Round "7.4"]
[White "Ortiz Suarez, Isan Reynaldo"]
[Black "Ganguly, Surya Shekhar"]
[Result "1/2-1/2"]
[ECO "A09"]
[WhiteElo "2531"]
[BlackElo "2627"]
[Annotator "TA"]
[PlyCount "80"]
[EventDate "2022.04.20"]
[EventType "tourn"]
[EventCountry "CUB"]
[SourceTitle "playchess.com"]
[Source "ChessBase"]
[SourceQuality "1"]
[TimeControl "40/5400+30:1800+30"]

{[%evp 9,80,4,25,0,-5,-8,30,-12,0,11,17,17,115,115,113,109,181,169,256,200,219,193,187,167,189,126,133,130,129,144,138,140,139,154,182,170,179,112,177,166,192,171,164,170,165,155,163,146,158,155,155,145,141,0,0,0,0,0,0,0,0,0,0,-15,0,-110,0,0,0,0,0,0,85]} 1. Nf3 {[%emt 0:03:02]} d5 {[%emt 0:00:14]} 2. c4 {[%emt 0:00:18]} d4 {[%emt 0:00:21]} 3. b4 {[%emt 0:00:08]} g5 {[%emt 0:00:13]} 4. Qb3 {[%emt 0:00:11] [#]} f6 $146 {[%emt 0:22:55]} ({Predecessor:} 4... Bg7 5. Nxg5 e5 6. d3 Bh6 7. f4 exf4 8. h4 Nc6 9. b5 Nce7 10. c5 Be6 11. Nxe6 fxe6 12. Qxe6 {0-1 (39) Howell,D (2663)-Navara,D (2719) chess24.com INT 2020}) 5. e3 {[%emt 0:04:20]} e5 {[%emt 0:00:52]} 6. h3 {[%emt 0:07:25] A09: Réti Opening: 1 Nf3 d5 2 c4.} c5 {[%emt 0:01:22]} 7. bxc5 {[%emt 0:01:05]} Ne7 {[%emt 0:02:21]} 8. Be2 {[%emt 0:05:39] White has an edge.} Na6 {[%emt 0:01:15]} 9. exd4 {[%emt 0:02:06]} exd4 {[%emt 0:02:18]} 10. Bb2 {[%emt 0:08:01]} Bg7 {[%emt 0:06:52]} (10... Nxc5 $11 11. Qb5+ Nc6 12. Bxd4 (12. Nxd4 $2 Kf7 $19) 12... a6 $1) 11. Nxd4 $16 {[%emt 0:01:07]} O-O {[%emt 0:00:27]} 12. O-O {[%emt 0:01:35]} Nxc5 {[%emt 0:00:15]} (12... f5 $16) 13. Qa3 $1 $18 {[%emt 0:00:21]} Ne4 {[%emt 0:07:38]} (13... b6 $142 14. Nb5 Bb7) 14. d3 {[%emt 0:04:07]} Nd6 {[%emt 0:00:03]} 15. Nc3 {[%emt 0:01:54]} f5 {[%emt 0:03:23][%cal Bf6f5,Bf5g4][%mdl 32]} 16. Ncb5 {[%emt 0:01:25]} Nf7 {[%emt 0:03:28]} 17. Nb3 {[%emt 0:03:24]} ({White should try} 17. Bh5 $18) 17... Bxb2 $16 {[%emt 0:01:44]} 18. Qxb2 {[%emt 0:00:05]} Ng6 {[%emt 0:00:05]} 19. Rfe1 {[%emt 0:07:43] &Bianco is much more active. The black rooks are badly placed.} g4 {[%emt 0:03:51]} 20. hxg4 {[%emt 0:02:15]} fxg4 {[%emt 0:00:03]} 21. Bf1 {[%emt 0:09:18]} Nh4 {[%emt 0:02:43][%cal Oh4f3]} 22. Nd2 {[%emt 0:08:47] Inhibits Nf3+.} a6 {[%emt 0:08:50]} 23. Nc3 {[%emt 0:00:03]} ({Better is} 23. Nd4 $18) 23... Qd4 {[%emt 0:01:46]} (23... g3 $16 24. Nce4 (24. fxg3 Qd4+ 25. Kh1 Nf5 $16) 24... gxf2+ 25. Kxf2 (25. Nxf2 a5 $16) 25... Ne5+ 26. Kg1 Nc6) 24. Nd1 {[%emt 0:01:50]} Qf4 {[%emt 0:00:39]} 25. Ne4 {[%emt 0:02:27]} (25. Re7 Qg5 26. Re1 Qf4) 25... Ng5 {[%emt 0:05:49]} 26. Nxg5 {[%emt 0:00:06] The board is on fire.} Qxg5 {[%emt 0:00:06]} 27. Qe5 {[%emt 0:01:36]} Bf5 {[%emt 0:10:56][%cal Oa8e8]} 28. Ne3 {[%emt 0:00:06]} Rae8 {[%emt 0:00:24]} 29. Qd5+ {[%emt 0:02:40]} Kh8 {[%emt 0:00:04][%cal Oh4f3]} 30. Nxf5 {[%emt 0:00:20]} ({Don't play} 30. Qxb7 $6 Nf3+ 31. gxf3 gxf3+ 32. Ng2 fxg2 33. Qb2+ (33. Qxg2 Qf6 $17) 33... Kg8 34. Bxg2 Bxd3 $14) 30... Nxf5 {[%emt 0:00:12] [#]} 31. g3 {[%emt 0:00:56]} ({Much worse is} 31. Qxb7 $6 g3 32. Qb2+ Kg8 33. Rxe8 Rxe8 34. fxg3 Nxg3 $11) (31. Rab1 $1 $16) 31... Qf6 $11 {[%emt 0:00:27]} 32. Kh1 {[%emt 0:19:29]} Qh6+ {[%emt 0:07:05]} 33. Kg1 {[%emt 0:00:04]} Qf6 {[%emt 0:00:12]} 34. Kh1 {[%emt 0:00:03]} Qh6+ {[%emt 0:07:54]} 35. Kg2 {[%emt 0:00:04] aiming for Rxe8.} Qf6 {[%emt 0:00:27][%cal Of5h4] And now ...Nh4+! would win.} (35... Rxe1 $2 36. Rxe1 Qf6 37. Qe5 $16) 36. Kh1 {[%emt 0:04:15]} Nd4 {[%emt 0:00:02] ( -> ...Nf3)} 37. Qh5 {[%emt 0:00:06] [#]} (37. Rxe8 $11 {was the only way to keep the balance.} Rxe8 38. Qh5) 37... Rxe1 (37... Rc8 $1 $17 {[%cal Rc8c5] Hoping for ...Rc5!} 38. Bg2 Nc2) 38. Rxe1 {The position is equal.} Qxf2 {[%emt 0:00:01]} 39. Qe5+ {[%emt 0:00:01]} Qf6 {[%emt 0:00:01] ...Qxe5 is the strong threat.} 40. Bg2 {[%emt 0:00:04]} b6 {[%emt 0:00:03] Black defended with fortune.  Weighted Error Value: White=0.22 (precise) /Black=0.19 (very precise)} (40... Nf3 $11 {keeps the balance.} 41. Qxf6+ Rxf6 42. Re8+ Kg7 43. Re7+ Kg8 44. Bxf3 Rxf3) 1/2-1/2

[Event "LV Capablanca Memorial Elite 2022"]
[Site "La Habana"]
[Date "2022.04.26"]
[Round "7.5"]
[White "Mareco, Sandro"]
[Black "Durarbayli, Vasif"]
[Result "1/2-1/2"]
[ECO "D46"]
[WhiteElo "2643"]
[BlackElo "2615"]
[Annotator "TA"]
[PlyCount "47"]
[EventDate "2022.04.20"]
[EventType "tourn"]
[EventCountry "CUB"]
[SourceTitle "playchess.com"]
[Source "ChessBase"]
[SourceQuality "1"]
[TimeControl "40/5400+30:1800+30"]

{[%evp 21,47,18,11,4,35,12,6,0,0,-14,-14,-7,-7,-12,-26,0,104,-52,-55,-54,-34,-46,0,0,0,0,0,2]} 1. d4 {[%emt 0:00:07]} d5 {[%emt 0:00:06]} 2. c4 {[%emt 0:00:04]} c6 {[%emt 0:00:03]} 3. Nc3 {[%emt 0:00:05]} Nf6 {[%emt 0:00:04]} 4. e3 {[%emt 0:00:03]} e6 {[%emt 0:00:06]} 5. Nf3 {[%emt 0:00:04]} Nbd7 {[%emt 0:00:04]} 6. Qc2 {[%emt 0:00:04]} Bd6 {[%emt 0:00:05]} 7. Bd3 {[%emt 0:00:14]} O-O {[%emt 0:00:07]} 8. O-O {[%emt 0:00:06]} dxc4 {[%emt 0:00:04]} 9. Bxc4 {[%emt 0:00:04]} b5 {[%emt 0:00:05]} 10. Be2 {[%emt 0:00:04]} Bb7 {[%emt 0:00:07]} 11. e4 {[%emt 0:00:49]} e5 {[%emt 0:00:05]} 12. dxe5 {[%emt 0:00:03] D46: Semi-Slav: 5 e3 Nbd7 6 Bd3, Black avoids the Meran.} Nxe5 {[%emt 0:00:05]} 13. Nd4 {[%emt 0:00:06]} Neg4 {[%emt 0:02:24]} 14. Nf5 {[%emt 0:00:47]} Bxh2+ {[%emt 0:00:38]} 15. Kh1 {[%emt 0:00:04] [#] Black must now prevent f3.} Bb8 {[%emt 0:00:07] Hoping for ...g6.} 16. Bg5 {[%emt 0:00:18] [#] f4 is the strong threat.} Bc8 $146 {[%emt 0:16:38] Threatening ...Bxf5.} ({Predecessor:} 16... Qc7 17. f4 b4 18. e5 bxc3 19. exf6 gxf6 20. Qxc3 Ne5 21. Bxf6 {1-0 (21) Mendonca,L (2549)-Salimova,N (2395) chess24.com INT 2021}) 17. Rad1 {[%emt 0:05:58]} Qc7 {[%emt 0:00:11][%csl Gb8,Gg4][%cal Rc7h2]} 18. Nd6 {[%emt 0:00:06][%cal Oe4e5] Active counter play!} a6 {[%emt 0:00:32] [#]} (18... Be6 $11) 19. g3 $2 {[%emt 0:30:28]} ({Only move:} 19. e5 $1 $16 {[%cal Re5f6]} Nxe5 20. Bxf6 gxf6 21. f4) 19... h6 $15 {[%emt 0:30:31]} 20. Bxf6 {[%emt 0:12:18]} Nxf6 {[%emt 0:00:21]} 21. e5 {[%emt 0:00:09]} Nd5 {[%emt 0:01:27]} (21... Ng4 $15 {might be stronger.}) 22. Nxd5 $11 {[%emt 0:04:36] The position is equal.} cxd5 {[%emt 0:00:06]} 23. Qxc7 {[%emt 0:00:04]} Bxc7 {[%emt 0:00:04]} 24. Nxc8 {[%emt 0:00:05] Weighted Error Value: White=0.21 (precise) /Black=0.21 (precise)} 1/2-1/2

[Event "LV Capablanca Memorial Elite 2022"]
[Site "La Habana"]
[Date "2022.04.27"]
[Round "8.1"]
[White "Yilmaz, Mustafa"]
[Black "Durarbayli, Vasif"]
[Result "1/2-1/2"]
[ECO "D11"]
[WhiteElo "2627"]
[BlackElo "2615"]
[Annotator "TA"]
[PlyCount "27"]
[EventDate "2022.04.20"]
[EventType "tourn"]
[EventCountry "CUB"]
[SourceTitle "playchess.com"]
[Source "ChessBase"]
[SourceQuality "1"]
[TimeControl "40/5400+30:1800+30"]

{[%evp 9,27,11,13,13,7,13,5,10,4,5,5,10,16,5,0,0,0,0,0,0]} 1. d4 {[%emt 0:00:09]} d5 {[%emt 0:00:35]} 2. c4 {[%emt 0:00:09]} c6 {[%emt 0:00:03]} 3. Nf3 {[%emt 0:00:05]} Nf6 {[%emt 0:00:04]} 4. g3 {[%emt 0:00:32]} Bf5 {[%emt 0:02:58]} 5. Nc3 {[%emt 0:01:23]} e6 {[%emt 0:00:14] The position is equal.} 6. Nh4 {[%emt 0:01:38] D11: Slav Defence: 3 Nf3 sidelines and 3...Nf6 4 e3 Bg4.} dxc4 {[%emt 0:00:24]} 7. Nxf5 {[%emt 0:00:11]} exf5 {[%emt 0:00:17]} 8. e3 {[%emt 0:01:06]} Bd6 {[%emt 0:04:29]} 9. Bxc4 {[%emt 0:00:18]} O-O {[%emt 0:00:10]} 10. O-O {[%emt 0:01:19]} Nbd7 {[%emt 0:00:46] [#]} 11. Re1 $146 {[%emt 0:01:21]} ({Predecessor:} 11. Qd3 g6 12. Rd1 Qe7 13. Bd2 Rad8 14. Be1 h5 15. h4 Ng4 16. Qe2 Ndf6 17. Qf3 {1-0 (62) Samunenkov,I (2301)-Seul,G (2372) Chess.com INT 2021}) 11... Nb6 {[%emt 0:06:23]} 12. Bf1 {[%emt 0:02:58]} Re8 {[%emt 0:01:43]} 13. Bg2 {[%emt 0:00:49]} h5 {[%emt 0:02:49]} 14. h4 {[%emt 0:05:32] Not much happened in this game.  Weighted Error Value: White=0.01 (flawless) /Black=0.00 (flawless)} 1/2-1/2